[Event "GER-ch Youth-U12 2022"]
[Site "Willingen"]
[Date "2022.06.06"]
[Round "3.23"]
[White "Goldkuhle, Collin"]
[Black "Haertel, Leon"]
[Result "1-0"]
[ECO "B23"]
[WhiteElo "1323"]
[BlackElo "1536"]
[Annotator "NA RC COMBH"]
[PlyCount "61"]
[EventDate "2022.06.05"]
[EventType "swiss"]
[EventRounds "9"]
[EventCountry "GER"]
[SourceTitle "playchess.com"]
[Source "ChessBase"]
[SourceQuality "1"]
[TimeControl "40/4500+30:900+30"]

1. e4 {[%emt 0:00:00]} c5 {[%emt 0:00:00]} 2. Nc3 {[%emt 0:00:00]} Nc6 {[%emt 0:00:00]} 3. f4 {[%emt 0:00:00]} d6 {[%emt 0:00:00]} 4. Nf3 {[%emt 0:00:00]} Nf6 {[%emt 0:00:00]} 5. Bb5 {[%emt 0:00:00]} Bd7 {[%emt 0:00:00]} 6. O-O {[%emt 0:00:00]} a6 {[%emt 0:00:00]} 7. Bxc6 {[%emt 0:00:00]} Bxc6 {[%emt 0:00:00]} 8. d3 {[%emt 0:00:00]} g6 {[%emt 0:00:00]} 9. Qe1 {[%emt 0:00:00]} Bg7 {[%emt 0:00:00]} 10. h3 {[%emt 0:00:00]} h5 {[%emt 0:00:00]} 11. e5 {[%emt 0:00:00]} dxe5 {[%emt 0:00:00]} 12. fxe5 {[%emt 0:00:00]} Nd5 {[%emt 0:00:00]} 13. Bd2 {[%emt 0:00:00]} e6 {[%emt 0:00:00]} 14. Qf2 {[%emt 0:01:23]} Qe7 {[%emt 0:00:00]} 15. Ne4 {[%emt 0:05:00]} O-O-O {[%emt 0:02:35]} 16. Qxc5 {[%emt 0:06:42]} Qxc5+ {[%emt 0:01:32]} 17. Nxc5 {[%emt 0:00:24]} Rdf8 {[%emt 0:01:02]} 18. Ne4 {[%emt 0:01:36]} f5 {[%emt 0:08:04]} 19. exf6 {[%emt 0:01:18]} Nxf6 {[%emt 0:01:29]} 20. Bc3 {[%emt 0:02:50]} Rhg8 {[%emt 0:03:01]} 21. Nfg5 {[%emt 0:03:47]} Bxe4 {[%emt 0:00:52]} 22. dxe4 {[%emt 0:04:39]} Kd7 {[%emt 0:00:56]} 23. Rad1+ {[%emt 0:00:38]} Ke7 {[%emt 0:00:11]} 24. Bb4+ {[%emt 0:00:09]} Ke8 {[%emt 0:00:26]} 25. Bxf8 {[%emt 0:00:05]} Kxf8 {[%emt 0:00:12]} 26. Nxe6+ {[%emt 0:00:06]} Ke7 {[%emt 0:00:08]} 27. Ng5 {[%emt 0:01:28]} Nd7 {[%emt 0:01:18]} 28. Rf7+ {[%emt 0:00:53]} Ke8 {[%emt 0:00:17]} 29. Rdxd7 {[%emt 0:00:12]} Bxb2 {[%emt 0:00:11]} 30. Rfe7+ {[%emt 0:00:15]} Kf8 {[%emt 0:00:07]} 31. Nh7# {[%emt 0:00:28]} 1-0

[Event "GER-ch Youth-U12 2022"]
[Site "Willingen"]
[Date "2022.06.06"]
[Round "3.24"]
[White "Steven, Matthias"]
[Black "Gulamzada, Elmir"]
[Result "0-1"]
[ECO "C01"]
[WhiteElo "1376"]
[BlackElo "1539"]
[Annotator "NA RC COMBH"]
[PlyCount "114"]
[EventDate "2022.06.05"]
[EventType "swiss"]
[EventRounds "9"]
[EventCountry "GER"]
[SourceTitle "playchess.com"]
[Source "ChessBase"]
[SourceQuality "1"]
[TimeControl "40/4500+30:900+30"]

1. e4 {[%emt 0:00:00]} e6 {[%emt 0:00:12]} 2. d4 {[%emt 0:00:00]} d5 {[%emt 0:00:00]} 3. exd5 {[%emt 0:00:00]} exd5 {[%emt 0:00:00]} 4. Nc3 {[%emt 0:00:00]} Bf5 {[%emt 0:00:00]} 5. Bf4 {[%emt 0:00:00]} Nf6 {[%emt 0:00:00]} 6. Bd3 {[%emt 0:00:00]} Bxd3 {[%emt 0:00:00]} 7. Qxd3 {[%emt 0:00:00]} c6 {[%emt 0:00:00]} 8. O-O-O {[%emt 0:00:00]} Be7 {[%emt 0:00:00]} 9. Nge2 {[%emt 0:00:00]} b5 {[%emt 0:00:00]} 10. Rdg1 {[%emt 0:00:29]} b4 {[%emt 0:02:02]} 11. Nd1 {[%emt 0:00:32]} c5 {[%emt 0:10:40]} 12. c3 {[%emt 0:06:48]} c4 {[%emt 0:01:41]} 13. Qf3 {[%emt 0:11:12]} Qa5 {[%emt 0:19:39]} 14. Kb1 {[%emt 0:00:00]} b3 {[%emt 0:01:47]} 15. axb3 {[%emt 0:02:10]} cxb3 {[%emt 0:06:16]} 16. Ng3 {[%emt 0:01:56]} Qa2+ {[%emt 0:07:56]} 17. Kc1 {[%emt 0:02:29]} Qa1+ {[%emt 0:01:14]} 18. Kd2 {[%emt 0:00:12]} Qb1 {[%emt 0:01:51]} 19. Qe2 {[%emt 0:02:30]} O-O {[%emt 0:08:59]} 20. Qd3 {[%emt 0:01:17]} Qa2 {[%emt 0:04:14]} 21. Ke2 {[%emt 0:04:03]} Re8 {[%emt 0:01:35]} 22. Qd2 {[%emt 0:01:33]} Bd6+ {[%emt 0:02:24]} 23. Be3 {[%emt 0:00:19]} Ng4 {[%emt 0:02:00]} 24. f3 {[%emt 0:01:41]} Nxe3 {[%emt 0:01:06]} 25. Nxe3 {[%emt 0:00:21]} Bf4 {[%emt 0:01:08]} 26. Ngf1 {[%emt 0:04:57]} a5 {[%emt 0:02:54]} 27. g3 {[%emt 0:01:49]} Bh6 {[%emt 0:02:17]} 28. f4 {[%emt 0:00:22]} Qb1 {[%emt 0:01:30]} 29. Kf2 {[%emt 0:01:47]} Qe4 {[%emt 0:00:39]} 30. Nd1 {[%emt 0:01:46]} Qc2 {[%emt 0:00:36]} 31. Nde3 {[%emt 0:03:07]} Qe4 {[%emt 0:00:50]} 32. Qe2 {[%emt 0:04:34]} a4 {[%emt 0:01:20]} 33. Nd2 {[%emt 0:00:49]} Qe6 {[%emt 0:00:41]} 34. Re1 {[%emt 0:01:18]} Nd7 {[%emt 0:01:55]} 35. Qb5 {[%emt 0:00:58]} Nf6 {[%emt 0:02:32]} 36. c4 {[%emt 0:04:37]} dxc4 {[%emt 0:01:14]} 37. Qxc4 {[%emt 0:01:57]} Qxc4 {[%emt 0:01:12]} 38. Ndxc4 {[%emt 0:00:20]} Red8 {[%emt 0:00:32]} 39. Rd1 {[%emt 0:00:20]} Ra7 {[%emt 0:00:40]} 40. Rd2 {[%emt 0:00:07]} Ne4+ {[%emt 0:00:15]} 41. Kg2 {[%emt 0:15:29]} Nxd2 {[%emt 0:15:20]} 42. Nxd2 {[%emt 0:00:06]} Rxd4 {[%emt 0:00:07]} 43. Nf3 {[%emt 0:00:12]} Rdd7 {[%emt 0:00:26]} 44. Rc1 {[%emt 0:00:46]} Rd8 {[%emt 0:00:42]} 45. Nd5 {[%emt 0:00:37]} g6 {[%emt 0:01:26]} 46. Nb4 {[%emt 0:00:27]} Bg7 {[%emt 0:00:00]} 47. Rb1 {[%emt 0:00:00]} Rad7 {[%emt 0:00:00]} 48. Ra1 {[%emt 0:00:00]} Bxb2 {[%emt 0:00:00]} 49. Rxa4 {[%emt 0:00:00]} Bc3 {[%emt 0:00:00]} 50. Nc6 {[%emt 0:00:00]} b2 {[%emt 0:00:00]} 51. Nxd8 {[%emt 0:00:00]} Rxd8 {[%emt 0:00:00]} 52. Rc4 {[%emt 0:00:00]} b1=Q {[%emt 0:00:12]} 53. Kh3 {[%emt 0:00:00]} Qf1+ {[%emt 0:00:00]} 54. Kh4 {[%emt 0:00:00]} Qxc4 {[%emt 0:00:00]} 55. Ng5 {[%emt 0:00:00]} Qe2 {[%emt 0:00:00]} 56. g4 {[%emt 0:00:00]} Be1+ {[%emt 0:00:00]} 57. Kh3 {[%emt 0:00:00]} Qf1# {[%emt 0:00:00]} 0-1

[Event "GER-ch Youth-U12 2022"]
[Site "Willingen"]
[Date "2022.06.06"]
[Round "3.25"]
[White "Kullmann, Max"]
[Black "Draude, Theo"]
[Result "1-0"]
[ECO "A31"]
[WhiteElo "1442"]
[BlackElo "1397"]
[Annotator "NA RC COMBH"]
[PlyCount "190"]
[EventDate "2022.06.05"]
[EventType "swiss"]
[EventRounds "9"]
[EventCountry "GER"]
[SourceTitle "playchess.com"]
[Source "ChessBase"]
[SourceQuality "1"]
[TimeControl "40/4500+30:900+30"]

1. d4 {[%emt 0:00:00]} Nf6 {[%emt 0:00:00]} 2. c4 {[%emt 0:00:00]} c5 {[%emt 0:00:00]} 3. Nf3 {[%emt 0:00:00]} cxd4 {[%emt 0:00:00]} 4. Nxd4 {[%emt 0:00:00]} g6 {[%emt 0:00:00]} 5. Nc3 {[%emt 0:00:00]} Bg7 {[%emt 0:00:00]} 6. e3 {[%emt 0:00:00]} O-O {[%emt 0:00:00]} 7. Bd2 {[%emt 0:00:00]} a6 {[%emt 0:00:00]} 8. g3 {[%emt 0:00:00]} e5 {[%emt 0:00:00]} 9. Nf3 {[%emt 0:00:06]} Ne8 {[%emt 0:00:00]} 10. Bg2 {[%emt 0:00:51]} f5 {[%emt 0:00:00]} 11. e4 {[%emt 0:10:44]} d6 {[%emt 0:00:00]} 12. Bg5 {[%emt 0:02:10]} Qa5 {[%emt 0:00:00]} 13. Bd2 {[%emt 0:11:18]} Qc5 {[%emt 0:00:00]} 14. b3 {[%emt 0:08:02]} Nf6 {[%emt 0:00:00]} 15. O-O {[%emt 0:05:01]} fxe4 {[%emt 0:00:00]} 16. Ng5 {[%emt 0:00:21]} Bg4 {[%emt 0:01:01]} 17. Qc2 {[%emt 0:05:26]} Bf3 {[%emt 0:01:26]} 18. Ngxe4 {[%emt 0:04:54]} Nxe4 {[%emt 0:02:11]} 19. Nxe4 {[%emt 0:00:38]} Bxe4 {[%emt 0:01:19]} 20. Bxe4 {[%emt 0:00:26]} Nc6 {[%emt 0:00:09]} 21. Be3 {[%emt 0:01:23]} Qa5 {[%emt 0:06:05]} 22. Rfd1 {[%emt 0:02:20]} Rfd8 {[%emt 0:04:27]} 23. Rd5 {[%emt 0:10:04]} Qc7 {[%emt 0:04:04]} 24. Qd2 {[%emt 0:01:14]} Rac8 {[%emt 0:03:03]} 25. Rd1 {[%emt 0:00:04]} Bf8 {[%emt 0:00:28]} 26. Rd3 {[%emt 0:02:52]} Rd7 {[%emt 0:02:32]} 27. Bd5+ {[%emt 0:03:36]} Rf7 {[%emt 0:01:10]} 28. Bxf7+ {[%emt 0:00:58]} Qxf7 {[%emt 0:00:42]} 29. Bb6 {[%emt 0:01:01]} Qf5 {[%emt 0:01:18]} 30. Qe2 {[%emt 0:01:14]} e4 {[%emt 0:00:44]} 31. Re3 {[%emt 0:02:18]} Re8 {[%emt 0:00:40]} 32. Re1 {[%emt 0:01:02]} Ne5 {[%emt 0:00:42]} 33. Kh1 {[%emt 0:05:07]} Qh3 {[%emt 0:04:37]} 34. Rxe4 {[%emt 0:02:53]} Ng4 {[%emt 0:01:38]} 35. Qxg4 {[%emt 0:00:17]} Qxg4 {[%emt 0:00:07]} 36. Rxg4 {[%emt 0:00:24]} Rxe1+ {[%emt 0:00:07]} 37. Kg2 {[%emt 0:00:07]} Re2 {[%emt 0:00:19]} 38. Rd4 {[%emt 0:00:50]} Rxa2 {[%emt 0:00:24]} 39. Bc7 {[%emt 0:00:09]} Rb2 {[%emt 0:00:24]} 40. Bxd6 {[%emt 0:00:38]} Bxd6 {[%emt 0:00:12]} 41. Rxd6 {[%emt 0:15:03]} Rxb3 {[%emt 0:15:09]} 42. c5 {[%emt 0:00:18]} a5 {[%emt 0:00:07]} 43. c6 {[%emt 0:00:36]} bxc6 {[%emt 0:00:08]} 44. Rxc6 {[%emt 0:00:08]} a4 {[%emt 0:00:07]} 45. Ra6 {[%emt 0:00:17]} a3 {[%emt 0:00:37]} 46. Kf1 {[%emt 0:00:51]} Rb1+ {[%emt 0:00:19]} 47. Kg2 {[%emt 0:00:23]} Ra1 {[%emt 0:00:22]} 48. Kf3 {[%emt 0:00:36]} Kg7 {[%emt 0:02:06]} 49. Kg4 {[%emt 0:01:54]} Kh6 {[%emt 0:00:55]} 50. h4 {[%emt 0:00:20]} Kg7 {[%emt 0:00:53]} 51. Kg5 {[%emt 0:00:27]} Ra2 {[%emt 0:00:29]} 52. Ra7+ {[%emt 0:01:42]} Kg8 {[%emt 0:01:54]} 53. f4 {[%emt 0:00:00]} Rg2 {[%emt 0:00:00]} 54. Rxa3 {[%emt 0:00:00]} Kf7 {[%emt 0:00:00]} 55. Kh6 {[%emt 0:00:00]} Kg8 {[%emt 0:00:00]} 56. Ra8+ {[%emt 0:00:00]} Kf7 {[%emt 0:00:00]} 57. Ra7+ {[%emt 0:00:00]} Kf6 {[%emt 0:00:27]} 58. Ra3 {[%emt 0:00:00]} Rd2 {[%emt 0:00:00]} 59. Kxh7 {[%emt 0:00:00]} Rd6 {[%emt 0:00:00]} 60. Ra5 {[%emt 0:00:00]} Rd7+ {[%emt 0:00:00]} 61. Kh6 {[%emt 0:00:00]} Rd6 {[%emt 0:00:00]} 62. Ra7 {[%emt 0:00:00]} Rc6 {[%emt 0:00:00]} 63. Rg7 {[%emt 0:00:00]} Kf5 {[%emt 0:00:00]} 64. Rf7+ {[%emt 0:00:00]} Kg4 {[%emt 0:00:00]} 65. Rg7 {[%emt 0:00:00]} g5+ {[%emt 0:00:00]} 66. Kh7 {[%emt 0:00:00]} Kxg3 {[%emt 0:00:00]} 67. fxg5 {[%emt 0:07:17]} Kxh4 {[%emt 0:00:00]} 68. Rg6 {[%emt 0:00:17]} Rc7+ {[%emt 0:00:00]} 69. Kh6 {[%emt 0:00:48]} Rc8 {[%emt 0:00:00]} 70. Rg7 {[%emt 0:01:51]} Rc6+ {[%emt 0:00:00]} 71. g6 {[%emt 0:00:41]} Rc5 {[%emt 0:00:00]} 72. Rf7 {[%emt 0:00:38]} Rc6 {[%emt 0:00:00]} 73. Kh7 {[%emt 0:00:36]} Kg5 {[%emt 0:00:00]} 74. g7 {[%emt 0:00:31]} Rh6+ {[%emt 0:00:00]} 75. Kg8 {[%emt 0:00:04]} Rc6 {[%emt 0:00:00]} 76. Re7 {[%emt 0:01:46]} Kg6 {[%emt 0:01:17]} 77. Kh8 {[%emt 0:00:47]} Kf6 {[%emt 0:00:00]} 78. Ra7 {[%emt 0:01:35]} Rc8+ {[%emt 0:00:00]} 79. g8=Q {[%emt 0:00:09]} Rxg8+ {[%emt 0:00:00]} 80. Kxg8 {[%emt 0:00:11]} Ke6 {[%emt 0:00:00]} 81. Rc7 {[%emt 0:00:07]} Kd6 {[%emt 0:00:06]} 82. Rc1 {[%emt 0:00:11]} Kd5 {[%emt 0:00:00]} 83. Rd1+ {[%emt 0:00:06]} Ke5 {[%emt 0:00:14]} 84. Kf7 {[%emt 0:00:08]} Ke4 {[%emt 0:00:06]} 85. Ke6 {[%emt 0:00:08]} Ke3 {[%emt 0:00:00]} 86. Ke5 {[%emt 0:00:04]} Kf3 {[%emt 0:00:07]} 87. Rd8 {[%emt 0:00:19]} Ke3 {[%emt 0:00:00]} 88. Rd4 {[%emt 0:00:17]} Kf3 {[%emt 0:00:00]} 89. Re4 {[%emt 0:00:07]} Kf2 {[%emt 0:00:00]} 90. Kf4 {[%emt 0:00:05]} Kg2 {[%emt 0:00:00]} 91. Re3 {[%emt 0:00:15]} Kf2 {[%emt 0:00:00]} 92. Ra3 {[%emt 0:00:32]} Ke2 {[%emt 0:00:00]} 93. Ke4 {[%emt 0:00:08]} Kd2 {[%emt 0:00:00]} 94. Kd4 {[%emt 0:00:10]} Ke2 {[%emt 0:00:00]} 95. Rb3 {[%emt 0:00:30]} Kf1 {[%emt 0:00:00]} 1-0

[Event "GER-ch Youth-U12 2022"]
[Site "Willingen"]
[Date "2022.06.06"]
[Round "3.26"]
[White "Böhler, Yannic"]
[Black "Dell, Philip"]
[Result "0-1"]
[ECO "A37"]
[WhiteElo "1361"]
[BlackElo "1457"]
[Annotator "NA RC COMBH"]
[PlyCount "144"]
[EventDate "2022.06.05"]
[EventType "swiss"]
[EventRounds "9"]
[EventCountry "GER"]
[SourceTitle "playchess.com"]
[Source "ChessBase"]
[SourceQuality "1"]
[TimeControl "40/4500+30:900+30"]

1. c4 {[%emt 0:00:00]} c5 {[%emt 0:00:00]} 2. Nc3 {[%emt 0:00:00]} g6 {[%emt 0:00:00]} 3. g3 {[%emt 0:00:00]} Bg7 {[%emt 0:00:00]} 4. Bg2 {[%emt 0:00:00]} Nc6 {[%emt 0:00:00]} 5. Nf3 {[%emt 0:00:00]} e6 {[%emt 0:00:00]} 6. O-O {[%emt 0:00:00]} Nge7 {[%emt 0:00:00]} 7. d3 {[%emt 0:00:00]} O-O {[%emt 0:00:00]} 8. Bf4 {[%emt 0:00:00]} d5 {[%emt 0:00:00]} 9. cxd5 {[%emt 0:00:00]} Nxd5 {[%emt 0:03:08]} 10. Nxd5 {[%emt 0:00:00]} exd5 {[%emt 0:06:10]} 11. Qb3 {[%emt 0:00:48]} b6 {[%emt 0:08:32]} 12. Rac1 {[%emt 0:06:17]} Re8 {[%emt 0:05:05]} 13. Be3 {[%emt 0:07:25]} Be6 {[%emt 0:10:32]} 14. Qa3 {[%emt 0:09:07]} Qd7 {[%emt 0:03:41]} 15. Rc2 {[%emt 0:07:28]} Bh3 {[%emt 0:05:43]} 16. Qa4 {[%emt 0:04:16]} Bxg2 {[%emt 0:00:35]} 17. Kxg2 {[%emt 0:00:07]} Rad8 {[%emt 0:00:55]} 18. Rfc1 {[%emt 0:05:17]} Nb4 {[%emt 0:02:47]} 19. Qxd7 {[%emt 0:06:31]} Rxd7 {[%emt 0:00:39]} 20. Rd2 {[%emt 0:00:07]} Nxa2 {[%emt 0:00:16]} 21. Ra1 {[%emt 0:00:48]} Nb4 {[%emt 0:00:29]} 22. d4 {[%emt 0:01:00]} cxd4 {[%emt 0:01:17]} 23. Nxd4 {[%emt 0:01:17]} Bxd4 {[%emt 0:00:45]} 24. Bxd4 {[%emt 0:00:13]} Nc6 {[%emt 0:00:18]} 25. e3 {[%emt 0:01:44]} Na5 {[%emt 0:01:24]} 26. Rd3 {[%emt 0:06:53]} Nc6 {[%emt 0:02:52]} 27. Rd2 {[%emt 0:01:35]} Nxd4 {[%emt 0:00:07]} 28. Rxd4 {[%emt 0:00:09]} Re4 {[%emt 0:00:09]} 29. Rad1 {[%emt 0:03:15]} Rxd4 {[%emt 0:00:32]} 30. Rxd4 {[%emt 0:00:07]} f5 {[%emt 0:00:40]} 31. Kf3 {[%emt 0:01:37]} Kf7 {[%emt 0:00:07]} 32. Ke2 {[%emt 0:04:56]} Ke6 {[%emt 0:00:16]} 33. b3 {[%emt 0:00:57]} a5 {[%emt 0:01:18]} 34. Ra4 {[%emt 0:02:18]} Rc7 {[%emt 0:02:31]} 35. Kd2 {[%emt 0:00:18]} Kd6 {[%emt 0:01:35]} 36. Ra1 {[%emt 0:08:22]} Rc5 {[%emt 0:02:23]} 37. Ra4 {[%emt 0:04:16]} Kc6 {[%emt 0:01:27]} 38. Rh4 {[%emt 0:00:44]} h5 {[%emt 0:00:26]} 39. Ra4 {[%emt 0:00:11]} Rb5 {[%emt 0:03:43]} 40. Kc2 {[%emt 0:01:23]} Rc5+ {[%emt 0:02:10]} 41. Kd2 {[%emt 0:15:14]} Kb5 {[%emt 0:15:19]} 42. h4 {[%emt 0:01:11]} Ka6 {[%emt 0:00:10]} 43. Ra1 {[%emt 0:00:30]} Rc7 {[%emt 0:01:55]} 44. Ra2 {[%emt 0:05:38]} b5 {[%emt 0:01:03]} 45. Kd3 {[%emt 0:00:14]} b4 {[%emt 0:01:31]} 46. Kd2 {[%emt 0:00:00]} Rc3 {[%emt 0:00:00]} 47. Rb2 {[%emt 0:00:00]} Kb5 {[%emt 0:00:00]} 48. Rb1 {[%emt 0:00:00]} a4 {[%emt 0:00:00]} 49. bxa4+ {[%emt 0:00:00]} Kxa4 {[%emt 0:00:00]} 50. Ra1+ {[%emt 0:00:00]} Ra3 {[%emt 0:00:00]} 51. Rc1 {[%emt 0:00:00]} b3 {[%emt 0:00:00]} 52. Kc3 {[%emt 0:00:00]} Ra2 {[%emt 0:00:00]} 53. Rb1 {[%emt 0:00:00]} Rc2+ {[%emt 0:00:00]} 54. Kd3 {[%emt 0:00:00]} Rxf2 {[%emt 0:00:00]} 55. Kc3 {[%emt 0:00:00]} Rc2+ {[%emt 0:00:00]} 56. Kd3 {[%emt 0:00:00]} Ka3 {[%emt 0:00:00]} 57. Rf1 {[%emt 0:00:00]} Ka2 {[%emt 0:00:00]} 58. Rf4 {[%emt 0:01:38]} Rc4 {[%emt 0:00:00]} 59. Rxc4 {[%emt 0:02:22]} dxc4+ {[%emt 0:00:00]} 60. Kxc4 {[%emt 0:00:04]} b2 {[%emt 0:00:00]} 61. Kd5 {[%emt 0:00:44]} b1=Q {[%emt 0:00:00]} 62. g4 {[%emt 0:00:43]} Qe4+ {[%emt 0:00:00]} 63. Kd6 {[%emt 0:00:10]} fxg4 {[%emt 0:00:00]} 64. Kd7 {[%emt 0:00:09]} Qe5 {[%emt 0:00:00]} 65. e4 {[%emt 0:00:21]} Kb3 {[%emt 0:00:00]} 66. Kc6 {[%emt 0:00:13]} Kc4 {[%emt 0:00:00]} 67. Kd7 {[%emt 0:00:05]} Kc5 {[%emt 0:00:00]} 68. Kd8 {[%emt 0:00:11]} Qxe4 {[%emt 0:00:00]} 69. Kd7 {[%emt 0:00:42]} Qe5 {[%emt 0:00:00]} 70. Kc8 {[%emt 0:01:20]} Qg7 {[%emt 0:00:00]} 71. Kd8 {[%emt 0:00:39]} Kd6 {[%emt 0:00:00]} 72. Ke8 {[%emt 0:00:08]} Qe7# {[%emt 0:00:00]} 0-1

[Event "GER-ch Youth-U12 2022"]
[Site "Willingen"]
[Date "2022.06.06"]
[Round "3.27"]
[White "Gavrylyuk, Oleksandr"]
[Black "Wang, Arthur D"]
[Result "0-1"]
[ECO "C63"]
[WhiteElo "1272"]
[BlackElo "2090"]
[Annotator "TA"]
[PlyCount "70"]
[EventDate "2022.06.05"]
[EventType "swiss"]
[EventRounds "9"]
[EventCountry "GER"]
[SourceTitle "playchess.com"]
[Source "ChessBase"]
[SourceQuality "1"]
[TimeControl "40/4500+30:900+30"]

{[%evp 11,70,45,29,35,60,30,30,0,0,-8,0,-23,10,-31,-33,-77,-20,-30,-19,-58,0,0,57,47,45,4,58,55,55,52,70,6,3,3,3,3,3,8,7,8,7,7,9,-62,-56,-2008,-2003,-1798,-1775,-1654,-1442,-29947,-29944,-5297,-5297,-29995,-29996,-29996,-29997,-29997,-29998]} 1. e4 {[%emt 0:00:00]} e5 {[%emt 0:00:00]} 2. Nf3 {[%emt 0:00:00]} Nc6 {[%emt 0:00:00]} 3. Bb5 {[%emt 0:00:00]} f5 {[%emt 0:00:00]} 4. d3 {[%emt 0:00:00]} fxe4 {[%emt 0:00:00]} 5. dxe4 {[%emt 0:00:00]} d6 {[%emt 0:00:00]} 6. Nc3 {[%emt 0:00:00]} Nf6 {[%emt 0:00:00]} 7. Bc4 {[%emt 0:00:00] C63: Ruy Lopez: Schliemann/Jaenisch Defence.} h6 {[%emt 0:00:00] Prevents Ng5.} 8. h3 {[%emt 0:00:00]} Na5 {[%emt 0:00:00] [#]} 9. Bb3 $146 {[%emt 0:00:00] White has an edge.} ({Predecessor:} 9. Be2 Be6 10. O-O a6 11. Nh4 Bf7 12. Nf5 g6 13. Ne3 Nc6 14. f4 Bg7 15. Nc4 {1-0 (29) Rohde,T (2144)-Meyer,G (2021) Dortmund 2003}) 9... Nxb3 {[%emt 0:00:00]} 10. axb3 {[%emt 0:00:00]} Be7 {[%emt 0:00:00]} 11. Be3 {[%emt 0:00:00]} (11. Nh4) (11. Nh4 $5 {[%cal Rh4g6]}) 11... a6 {[%emt 0:00:00]} 12. O-O {[%emt 0:04:15]} (12. Nh4 $5 {[%cal Rh4g6]}) 12... O-O {[%emt 0:00:28]} 13. Re1 {[%emt 0:04:37]} Bd7 {[%emt 0:02:37]} (13... Be6 $17) 14. Nd5 {[%emt 0:03:51]} Bc6 {[%emt 0:02:01]} (14... Nxe4 15. Nxe7+ Qxe7 16. Qd5+ Qe6 17. Qxe4 $16) 15. Bc1 {[%emt 0:03:37]} Bxd5 {[%emt 0:09:16]} (15... Nxd5 $15 16. exd5 Bd7) 16. exd5 $11 {[%emt 0:00:54]} c6 {[%emt 0:00:55]} (16... Qe8 $11) 17. dxc6 $14 {[%emt 0:02:22]} bxc6 {[%emt 0:00:13]} 18. b4 {[%emt 0:02:35]} Qb6 {[%emt 0:03:57]} (18... a5) (18... a5 $11) 19. c3 {[%emt 0:01:01]} Nd5 {[%emt 0:02:04]} 20. Bd2 {[%emt 0:09:23]} Bh4 {[%emt 0:03:38]} 21. Be3 {[%emt 0:05:23]} (21. Qe2 $14 Be7 22. Ra5) 21... Nxe3 $11 {[%emt 0:02:06]} 22. Rxe3 {[%emt 0:03:29]} Bxf2+ {[%emt 0:03:27]} 23. Kxf2 {[%emt 0:00:30]} e4 $1 {[%emt 0:00:14][%mdl 64] [#] Pin} 24. Qxd6 $1 {[%emt 0:03:41] Threatens to win with Qe6+.} exf3 {[%emt 0:00:32]} 25. gxf3 {[%emt 0:02:31]} Rad8 {[%emt 0:01:16]} ({Don't play} 25... Rae8 26. Qd4 Qc7 27. Kg2 $14) 26. Qc5 {[%emt 0:01:33]} Qc7 {[%emt 0:00:47]} 27. Rh1 {[%emt 0:02:34] Inhibits Qh2+.} ({White should play} 27. Qe5 $11 Rd2+ 28. Ke1) 27... Qf4 $1 $15 {[%emt 0:01:03] [#] Hoping for ...Rd2+.} 28. Qxc6 $2 {[%emt 0:04:03][%mdl 8192] Loses the game.} (28. Qe5 $15) 28... Rd2+ $19 {[%emt 0:02:09]} 29. Re2 {[%emt 0:00:26]} Rd3 {[%emt 0:00:53][%cal Rd3f3]} 30. Qe6+ {[%emt 0:03:52]} Kh8 {[%emt 0:01:14]} 31. Re3 {[%emt 0:02:26]} Rd2+ {[%emt 0:00:11]} 32. Ke1 {[%emt 0:00:49]} Rfd8 {[%emt 0:00:45] ( -> ...Qh4+)} 33. Re2 {[%emt 0:05:01]} Qg3+ {[%emt 0:00:18] Black mates.} 34. Kf1 {[%emt 0:00:31]} Qxf3+ {[%emt 0:00:18]} 35. Kg1 {[%emt 0:00:20]} Rxe2 {[%emt 0:00:16] Weighted Error Value: White=0.80/Black=0.17 (very precise)} 0-1

[Event "GER-ch Youth-U12 2022"]
[Site "Willingen"]
[Date "2022.06.07"]
[Round "4.1"]
[White "Nechitailo, Nikita"]
[Black "Martin Fernandez, Rafael"]
[Result "1-0"]
[ECO "B22"]
[WhiteElo "1371"]
[BlackElo "1678"]
[Annotator "NA RC COMBH"]
[PlyCount "59"]
[EventDate "2022.06.05"]
[EventType "swiss"]
[EventRounds "9"]
[EventCountry "GER"]
[SourceTitle "playchess.com"]
[Source "ChessBase"]
[SourceQuality "1"]
[TimeControl "40/4500+30:900+30"]

1. e4 {[%emt 0:00:00]} c5 {[%emt 0:00:00]} 2. d4 {[%emt 0:00:00]} cxd4 {[%emt 0:00:00]} 3. c3 {[%emt 0:00:00]} Nf6 {[%emt 0:00:00]} 4. e5 {[%emt 0:00:00]} Nd5 {[%emt 0:00:00]} 5. Nf3 {[%emt 0:00:00]} Nc6 {[%emt 0:00:00]} 6. cxd4 {[%emt 0:00:00]} g6 {[%emt 0:00:00]} 7. Bc4 {[%emt 0:00:00]} Nb6 {[%emt 0:00:00]} 8. Bb3 {[%emt 0:00:00]} Bg7 {[%emt 0:00:00]} 9. O-O {[%emt 0:00:00]} O-O {[%emt 0:00:00]} 10. Re1 {[%emt 0:00:00]} d5 {[%emt 0:00:00]} 11. h3 {[%emt 0:00:00]} Na5 {[%emt 0:00:00]} 12. Nc3 {[%emt 0:00:00]} Nac4 {[%emt 0:00:00]} 13. Bxc4 {[%emt 0:00:00]} Nxc4 {[%emt 0:00:00]} 14. b3 {[%emt 0:00:00]} Nb6 {[%emt 0:00:00]} 15. a4 {[%emt 0:02:09]} a5 {[%emt 0:00:00]} 16. Ba3 {[%emt 0:02:21]} Bf5 {[%emt 0:00:34]} 17. Qd2 {[%emt 0:05:53]} Rc8 {[%emt 0:01:47]} 18. Nb5 {[%emt 0:02:52]} Nd7 {[%emt 0:01:22]} 19. Rac1 {[%emt 0:00:14]} Re8 {[%emt 0:02:22]} 20. Rxc8 {[%emt 0:00:44]} Qxc8 {[%emt 0:00:15]} 21. Rc1 {[%emt 0:00:06]} Qb8 {[%emt 0:01:38]} 22. Nc7 {[%emt 0:00:25]} Rc8 {[%emt 0:00:15]} 23. Nxd5 {[%emt 0:00:06]} Rxc1+ {[%emt 0:00:31]} 24. Qxc1 {[%emt 0:00:05]} e6 {[%emt 0:00:34]} 25. Bd6 {[%emt 0:00:45]} Qa7 {[%emt 0:00:41]} 26. Qc8+ {[%emt 0:00:10]} Nf8 {[%emt 0:00:10]} 27. Ne7+ {[%emt 0:00:03]} Kh8 {[%emt 0:00:12]} 28. Nxf5 {[%emt 0:00:04]} gxf5 {[%emt 0:00:40]} 29. Bxf8 {[%emt 0:00:04]} h6 {[%emt 0:00:32]} 30. Bc5+ {[%emt 0:00:03]} 1-0